[Event "Ostravsky Konik-A 2019"]
[Site "Ostrava"]
[Date "2019.05.02"]
[Round "6.3"]
[White "Malicka, Maria"]
[Black "Nehyba, Martin"]
[Result "1-0"]
[ECO "B66"]
[WhiteElo "2118"]
[BlackElo "2113"]
[Annotator "NA"]
[PlyCount "89"]
[EventDate "2019.04.27"]
[EventType "swiss"]
[EventCountry "CZE"]
[SourceTitle "playchess.com"]
[Source "ChessBase"]
[SourceQuality "1"]
[TimeControl "40/5400+30:1800+30"]

1. e4 c5 2. Nf3 d6 3. d4 cxd4 4. Nxd4 Nf6 5. Nc3 Nc6 6. Bg5 e6 7. Qd2 a6 8. Nxc6 bxc6 9. O-O-O Be7 10. Bxf6 gxf6 11. Bc4 Rb8 12. Rhe1 e5 13. Kb1 Be6 14. Bb3 Qb6 15. f4 Rg8 16. f5 Bxb3 17. axb3 Bf8 18. Qe2 Ke7 19. Rd3 Rd8 20. Rh3 h6 21. Rd1 Qb7 22. Rhd3 Bg7 23. Qf3 Rge8 24. g4 Rd7 25. h4 Red8 26. g5 hxg5 27. hxg5 Rh8 28. g6 Bh6 29. gxf7 Qb8 30. Rh1 Bg5 31. Rdd1 Kxf7 32. Rxh8 Qxh8 33. Rh1 Qg8 34. Qe2 Qc8 35. Qc4+ Kg7 36. Qe6 Qd8 37. Ne2 Re7 38. Qc4 d5 39. Qxc6 dxe4 40. Qxe4 Qd7 41. Qf3 Kg8 42. Nc3 e4 43. Nxe4 Qe8 44. Qh3 Qf8 45. Qh8+ {[%emt 2:00:49]} 1-0

[Event "Ostravsky Konik-A 2019"]
[Site "Ostrava"]
[Date "2019.05.02"]
[Round "6.4"]
[White "Vesely, Libor"]
[Black "Potomak, Vladimir"]
[Result "1/2-1/2"]
[ECO "B40"]
[WhiteElo "2214"]
[BlackElo "2102"]
[Annotator "NA"]
[PlyCount "102"]
[EventDate "2019.04.27"]
[EventType "swiss"]
[EventCountry "CZE"]
[SourceTitle "playchess.com"]
[Source "ChessBase"]
[SourceQuality "1"]
[TimeControl "40/5400+30:1800+30"]

1. e4 {[%emt 0:05:57]} c5 {[%emt 0:00:00]} 2. Nf3 {[%emt 0:00:49]} e6 {[%emt 0:00:00]} 3. Nc3 {[%emt 0:00:55]} a6 {[%emt 0:00:11]} 4. a4 {[%emt 0:00:29]} Nc6 {[%emt 0:00:38]} 5. d4 {[%emt 0:01:24]} cxd4 {[%emt 0:00:06]} 6. Nxd4 {[%emt 0:00:07]} Qc7 {[%emt 0:01:44]} 7. g3 {[%emt 0:03:50]} Nf6 {[%emt 0:07:16]} 8. Bg2 {[%emt 0:00:34]} b6 {[%emt 0:07:46]} 9. O-O {[%emt 0:01:01]} Bb7 {[%emt 0:00:06]} 10. Bf4 {[%emt 0:19:11]} Ne5 {[%emt 0:07:17]} 11. Re1 {[%emt 0:21:12]} d6 {[%emt 0:01:35]} 12. Qe2 {[%emt 0:05:06]} Be7 {[%emt 0:01:07]} 13. Nf3 {[%emt 0:02:08]} O-O {[%emt 0:02:16]} 14. Red1 {[%emt 0:05:20]} Rac8 {[%emt 0:01:43]} 15. Nxe5 {[%emt 0:02:38]} dxe5 {[%emt 0:00:05]} 16. Be3 {[%emt 0:00:28]} Rfd8 {[%emt 0:01:18]} 17. f3 {[%emt 0:02:09]} Bc5 {[%emt 0:00:53]} 18. Qf2 {[%emt 0:00:47]} Nd7 {[%emt 0:09:15]} 19. Rd2 {[%emt 0:02:55]} Bxe3 {[%emt 0:01:01]} 20. Qxe3 {[%emt 0:00:02]} Nb8 {[%emt 0:00:21]} 21. Rad1 {[%emt 0:00:48]} Nc6 {[%emt 0:00:13]} 22. Na2 {[%emt 0:02:13]} Rxd2 {[%emt 0:00:23]} 23. Rxd2 {[%emt 0:00:14]} Rd8 {[%emt 0:00:04]} 24. c3 {[%emt 0:00:45]} Na5 {[%emt 0:00:36]} 25. Bf1 {[%emt 0:00:32]} Nb3 {[%emt 0:01:38]} 26. Rxd8+ {[%emt 0:01:29]} Qxd8 {[%emt 0:00:05]} 27. Qd3 {[%emt 0:00:21]} Qc7 {[%emt 0:01:55]} 28. Qd1 {[%emt 0:06:07]} Nc5 {[%emt 0:00:37]} 29. Nb4 {[%emt 0:00:26]} a5 {[%emt 0:00:13]} 30. Na2 {[%emt 0:01:21]} Bc6 {[%emt 0:02:40]} 31. b3 {[%emt 0:00:07]} Kf8 {[%emt 0:00:42]} 32. Nc1 {[%emt 0:00:19]} Ke7 {[%emt 0:01:03]} 33. Nd3 {[%emt 0:00:40]} Qd6 {[%emt 0:03:13]} 34. Qc2 {[%emt 0:00:27]} f6 {[%emt 0:02:41]} 35. Nxc5 {[%emt 0:05:17]} Qxc5+ {[%emt 0:00:14]} 36. Kg2 {[%emt 0:01:08]} Qe3 {[%emt 0:05:04]} 37. Qd3 {[%emt 0:00:26]} Qxd3 {[%emt 0:00:09]} 38. Bxd3 {[%emt 0:00:03]} Kd6 {[%emt 0:00:05]} 39. Kf2 {[%emt 0:00:12]} Kc5 {[%emt 0:01:51]} 40. Ke3 {[%emt 0:00:34]} Kd6 {[%emt 0:00:21]} 41. Bc4 {[%emt 0:36:14]} Bd7 {[%emt 0:30:33]} 42. Kd3 {[%emt 0:01:03]} Kc5 {[%emt 0:03:35]} 43. Ba6 {[%emt 0:01:10]} g5 {[%emt 0:04:50]} 44. g4 {[%emt 0:00:00]} f5 {[%emt 0:00:00]} 45. Ke3 {[%emt 0:00:00]} fxg4 {[%emt 0:00:00]} 46. fxg4 {[%emt 0:00:00]} Kd6 {[%emt 0:00:00]} 47. Bd3 {[%emt 0:00:00]} Kc5 {[%emt 0:00:00]} 48. Kd2 {[%emt 0:00:00]} Bc6 {[%emt 0:00:00]} 49. Bb1 {[%emt 0:00:00]} Kd6 {[%emt 0:00:00]} 50. Bc2 {[%emt 0:00:00]} Kc5 {[%emt 0:00:00]} 51. Kc1 {[%emt 0:00:00]} Bd7 {[%emt 0:00:00]} 1/2-1/2

[Event "Ostravsky Konik-A 2019"]
[Site "Ostrava"]
[Date "2019.05.02"]
[Round "6.5"]
[White "Chlevistan, Jakub"]
[Black "Ruzicka, Petr"]
[Result "0-1"]
[ECO "E67"]
[WhiteElo "2047"]
[BlackElo "2202"]
[Annotator "NA"]
[PlyCount "106"]
[EventDate "2019.04.27"]
[EventType "swiss"]
[EventCountry "CZE"]
[SourceTitle "playchess.com"]
[Source "ChessBase"]
[SourceQuality "1"]
[TimeControl "40/5400+30:1800+30"]

1. Nf3 {[%emt 0:00:00]} Nf6 {[%emt 0:00:00]} 2. c4 {[%emt 0:00:00]} g6 {[%emt 0:00:43]} 3. d4 {[%emt 0:00:03]} Bg7 {[%emt 0:00:10]} 4. Nc3 {[%emt 0:00:34]} O-O {[%emt 0:00:47]} 5. g3 {[%emt 0:00:30]} d6 {[%emt 0:00:51]} 6. Bg2 {[%emt 0:00:11]} Nbd7 {[%emt 0:00:42]} 7. O-O {[%emt 0:00:17]} Re8 {[%emt 0:03:09]} 8. e4 {[%emt 0:03:02]} e5 {[%emt 0:01:26]} 9. h3 {[%emt 0:01:11]} exd4 {[%emt 0:01:19]} 10. Nxd4 {[%emt 0:00:19]} Nc5 {[%emt 0:02:07]} 11. Re1 {[%emt 0:00:37]} a5 {[%emt 0:00:19]} 12. b3 {[%emt 0:04:31]} c6 {[%emt 0:01:27]} 13. Bf4 {[%emt 0:02:06]} Nh5 {[%emt 0:08:52]} 14. Be3 {[%emt 0:02:21]} Nf6 {[%emt 0:04:58]} 15. Qc2 {[%emt 0:03:28]} Nfd7 {[%emt 0:00:50]} 16. Rad1 {[%emt 0:01:04]} Qb6 {[%emt 0:05:14]} 17. Nde2 {[%emt 0:10:28]} Qb4 {[%emt 0:11:05]} 18. Bd2 {[%emt 0:10:31]} Qb6 {[%emt 0:01:11]} 19. Bf4 {[%emt 0:06:42]} a4 {[%emt 0:14:42]} 20. Rb1 {[%emt 0:08:15]} axb3 {[%emt 0:02:09]} 21. axb3 {[%emt 0:00:04]} Ne5 {[%emt 0:01:43]} 22. Be3 {[%emt 0:03:46]} Qb4 {[%emt 0:05:03]} 23. Red1 {[%emt 0:06:17]} f5 {[%emt 0:03:25]} 24. Bd2 {[%emt 0:14:08]} Qb6 {[%emt 0:04:29]} 25. b4 {[%emt 0:05:27]} Nxe4 {[%emt 0:02:48]} 26. Nxe4 {[%emt 0:02:20]} fxe4 {[%emt 0:00:55]} 27. Bxe4 {[%emt 0:05:11]} Bxh3 {[%emt 0:04:24]} 28. c5 {[%emt 0:00:19]} dxc5 {[%emt 0:02:33]} 29. bxc5 {[%emt 0:00:15]} Qc7 {[%emt 0:03:08]} 30. Nf4 {[%emt 0:06:11]} Bg4 {[%emt 0:03:06]} 31. f3 {[%emt 0:02:30]} Bc8 {[%emt 0:01:07]} 32. Bc3 {[%emt 0:01:33]} Ra3 {[%emt 0:01:57]} 33. Bb2 {[%emt 0:01:30]} Ra5 {[%emt 0:06:03]} 34. Kg2 {[%emt 0:00:47]} Qf7 {[%emt 0:01:31]} 35. Rh1 {[%emt 0:00:28]} Nc4 {[%emt 0:01:04]} 36. Bc1 {[%emt 0:00:24]} Rxc5 {[%emt 0:00:35]} 37. Qf2 {[%emt 0:00:35]} Ra5 {[%emt 0:00:44]} 38. Rxh7 {[%emt 0:00:29]} Rxe4 {[%emt 0:01:00]} 39. Rxg7+ {[%emt 0:00:26]} Qxg7 {[%emt 0:00:45]} 40. fxe4 {[%emt 0:00:14]} b5 {[%emt 0:00:37]} 41. Bb2 {[%emt 0:02:36]} Nxb2 {[%emt 0:06:24]} 42. Rxb2 {[%emt 0:00:31]} Bg4 {[%emt 0:03:35]} 43. Rd2 {[%emt 0:01:05]} Qe7 {[%emt 0:01:14]} 44. Qd4 {[%emt 0:04:27]} Ra4 {[%emt 0:01:23]} 45. Qh8+ {[%emt 0:05:21]} Kxh8 {[%emt 0:00:37]} 46. Nxg6+ {[%emt 0:00:07]} Kg7 {[%emt 0:00:09]} 47. Nxe7 {[%emt 0:00:05]} Rc4 {[%emt 0:00:12]} 48. Rd6 {[%emt 0:02:36]} Rc2+ {[%emt 0:00:49]} 49. Kf1 {[%emt 0:01:01]} b4 {[%emt 0:05:16]} 50. Nxc6 {[%emt 0:07:35]} b3 {[%emt 0:01:57]} 51. Ne5 {[%emt 0:00:56]} b2 {[%emt 0:04:24]} 52. Rb6 {[%emt 0:00:31]} Bh3+ {[%emt 0:01:32]} 53. Kg1 {[%emt 0:00:09]} Bc8 0-1

[Event "Ostravsky Konik-A 2019"]
[Site "Ostrava"]
[Date "2019.05.02"]
[Round "6.6"]
[White "Orzechowski, Jacek"]
[Black "Krejci, Jan"]
[Result "1/2-1/2"]
[ECO "A14"]
[WhiteElo "2139"]
[BlackElo "2588"]
[Annotator "RC"]
[PlyCount "70"]
[EventDate "2019.04.27"]
[EventType "swiss"]
[EventCountry "CZE"]
[SourceTitle "playchess.com"]
[Source "ChessBase"]
[SourceQuality "1"]
[TimeControl "40/5400+30:1800+30"]

1. c4 {[%emt 0:00:00]} e6 {[%emt 0:00:00]} 2. g3 {[%emt 0:01:38]} Nf6 {[%emt 0:00:00]} 3. Bg2 {[%emt 0:00:22]} d5 {[%emt 0:00:00]} 4. Nf3 {[%emt 0:00:40]} Be7 {[%emt 0:00:00]} 5. O-O {[%emt 0:00:49]} O-O {[%emt 0:00:00]} 6. d4 {[%emt 0:01:48]} b6 {[%emt 0:00:57]} 7. Ne5 {[%emt 0:03:57]} Bb7 {[%emt 0:01:17]} 8. Nc3 {[%emt 0:00:35]} Nbd7 {[%emt 0:01:53]} 9. cxd5 {[%emt 0:01:57]} Nxd5 {[%emt 0:01:31]} 10. Nxd5 {[%emt 0:03:23]} Bxd5 {[%emt 0:01:42]} 11. Nc6 {[%emt 0:43:03]} Qe8 {[%emt 0:01:09]} 12. Nxe7+ {[%emt 0:05:58]} Qxe7 {[%emt 0:00:07]} 13. e4 {[%emt 0:03:17]} Bb7 {[%emt 0:00:29]} 14. Be3 {[%emt 0:01:21]} e5 {[%emt 0:04:02]} 15. d5 {[%emt 0:02:45]} c5 {[%emt 0:03:06]} 16. dxc6 {[%emt 0:06:24]} Bxc6 {[%emt 0:00:44]} 17. Qb3 {[%emt 0:01:35]} Nf6 {[%emt 0:09:07]} 18. f3 {[%emt 0:01:02]} h6 {[%emt 0:00:48]} 19. Rac1 {[%emt 0:01:34]} Rac8 {[%emt 0:00:38]} 20. Rc3 {[%emt 0:00:31]} Bd7 {[%emt 0:02:13]} 21. Rfc1 {[%emt 0:01:35]} Rxc3 {[%emt 0:00:24]} 22. Qxc3 {[%emt 0:05:38]} Rc8 {[%emt 0:03:14]} 23. Qd2 {[%emt 0:00:16]} Rxc1+ {[%emt 0:02:37]} 24. Qxc1 {[%emt 0:00:08]} Be6 {[%emt 0:00:12]} 25. a3 {[%emt 0:00:26]} Ne8 {[%emt 0:03:54]} 26. Bf1 {[%emt 0:02:17]} Nd6 {[%emt 0:03:15]} 27. Be2 {[%emt 0:05:02]} Qd7 {[%emt 0:01:15]} 28. Qc3 {[%emt 0:03:30]} f6 {[%emt 0:02:44]} 29. Qd2 {[%emt 0:01:05]} Qc7 {[%emt 0:02:10]} 30. Kf2 {[%emt 0:00:37]} Kf7 {[%emt 0:04:30]} 31. h4 {[%emt 0:00:36]} h5 {[%emt 0:00:10]} 32. Qc1 {[%emt 0:01:20]} Qd7 {[%emt 0:01:29]} 33. Qd2 {[%emt 0:00:35]} Ke7 {[%emt 0:02:36]} 34. Qb4 {[%emt 0:00:25]} Qc6 {[%emt 0:01:36]} 35. Qd2 Bc4 1/2-1/2

[Event "Ostravsky Konik-A 2019"]
[Site "Ostrava"]
[Date "2019.05.02"]
[Round "6.7"]
[White "Meers, Hubert"]
[Black "Krajina, Ales"]
[Result "0-1"]
[ECO "B02"]
[WhiteElo "2031"]
[BlackElo "2119"]
[Annotator "NA"]
[PlyCount "90"]
[EventDate "2019.04.27"]
[EventType "swiss"]
[EventCountry "CZE"]
[SourceTitle "playchess.com"]
[Source "ChessBase"]
[SourceQuality "1"]
[TimeControl "40/5400+30:1800+30"]

1. e4 {[%emt 0:00:00]} Nf6 {[%emt 0:00:00]} 2. e5 {[%emt 0:00:00]} Ng8 {[%emt 0:00:00]} 3. d4 {[%emt 0:01:06]} d5 {[%emt 0:00:16]} 4. c4 {[%emt 0:01:25]} c5 {[%emt 0:00:22]} 5. Nc3 {[%emt 0:07:23]} e6 {[%emt 0:00:47]} 6. cxd5 {[%emt 0:11:53]} exd5 {[%emt 0:00:22]} 7. dxc5 {[%emt 0:01:05]} d4 {[%emt 0:00:32]} 8. Ne4 {[%emt 0:01:16]} Qd5 {[%emt 0:07:11]} 9. Qe2 {[%emt 0:01:27]} Nc6 {[%emt 0:05:47]} 10. g3 {[%emt 0:06:04]} Bxc5 {[%emt 0:02:31]} 11. Bf4 {[%emt 0:29:10]} Bb4+ {[%emt 0:04:02]} 12. Kd1 {[%emt 0:00:07]} Be6 {[%emt 0:09:31]} 13. Bg2 {[%emt 0:17:43]} d3 {[%emt 0:01:49]} 14. Qe3 {[%emt 0:00:12]} Qc4 {[%emt 0:04:25]} 15. Rc1 {[%emt 0:06:20]} Qxa2 {[%emt 0:02:30]} 16. Qxd3 {[%emt 0:00:31]} Qxb2 {[%emt 0:07:01]} 17. Nd6+ {[%emt 0:00:25]} Kf8 {[%emt 0:00:29]} 18. Bd5 {[%emt 0:00:36]} Nxe5 {[%emt 0:13:45]} 19. Bxe5 {[%emt 0:07:42]} Qxe5 {[%emt 0:00:40]} 20. Bxe6 {[%emt 0:00:10]} Qxe6 {[%emt 0:04:51]} 21. Nxb7 {[%emt 0:01:30]} Qe1+ {[%emt 0:00:29]} 22. Kc2 {[%emt 0:00:00]} Rc8+ {[%emt 0:00:01]} 23. Nc5 {[%emt 0:00:40]} Rxc5+ {[%emt 0:00:52]} 24. Kb3 {[%emt 0:01:03]} Rxc1 {[%emt 0:00:14]} 25. Ne2 {[%emt 0:00:49]} Rc3+ {[%emt 0:01:35]} 26. Nxc3 {[%emt 0:00:20]} Qxc3+ {[%emt 0:00:08]} 27. Qxc3 {[%emt 0:00:04]} Bxc3 {[%emt 0:00:11]} 28. Kxc3 {[%emt 0:00:04]} Nf6 {[%emt 0:00:21]} 29. Ra1 {[%emt 0:00:31]} g6 {[%emt 0:00:12]} 30. f3 {[%emt 0:00:52]} Kg7 {[%emt 0:00:11]} 31. Rxa7 {[%emt 0:00:01]} Re8 {[%emt 0:00:18]} 32. Kd2 {[%emt 0:00:13]} Rb8 {[%emt 0:00:25]} 33. Ra2 {[%emt 0:00:59]} Rb3 {[%emt 0:00:36]} 34. Ke2 {[%emt 0:00:14]} Nd7 {[%emt 0:00:10]} 35. f4 {[%emt 0:00:45]} h5 {[%emt 0:00:48]} 36. Kf2 {[%emt 0:00:58]} Nc5 {[%emt 0:01:10]} 37. Kg2 {[%emt 0:00:15]} Nd3 {[%emt 0:00:24]} 38. Ra6 {[%emt 0:01:43]} Rb2+ {[%emt 0:03:33]} 39. Kg1 {[%emt 0:00:08]} Nf2 {[%emt 0:02:41]} 40. Ra4 {[%emt 0:02:56]} f5 {[%emt 0:02:54]} 41. Ra7+ {[%emt 0:01:29]} Kh6 {[%emt 0:00:04]} 42. Ra3 {[%emt 0:01:45]} Ng4 {[%emt 0:02:07]} 43. h3 {[%emt 0:00:17]} Nf2 {[%emt 0:00:08]} 44. h4 {[%emt 0:01:39]} Ne4 {[%emt 0:00:27]} 45. Re3 {[%emt 0:01:28]} Rc2 {[%emt 0:01:42]} 0-1

[Event "Ostravsky Konik-A 2019"]
[Site "Ostrava"]
[Date "2019.05.02"]
[Round "6.8"]
[White "Stalmach, Richard"]
[Black "Shilov, Sergej"]
[Result "1-0"]
[ECO "A50"]
[WhiteElo "1991"]
[BlackElo "2158"]
[Annotator "NA"]
[PlyCount "89"]
[EventDate "2019.04.27"]
[EventType "swiss"]
[EventCountry "CZE"]
[SourceTitle "playchess.com"]
[Source "ChessBase"]
[SourceQuality "1"]
[TimeControl "40/5400+30:1800+30"]

1. d4 {[%emt 0:00:00]} Nf6 {[%emt 0:00:00]} 2. c4 {[%emt 0:00:00]} g6 {[%emt 0:00:50]} 3. f3 {[%emt 0:00:00]} c5 {[%emt 0:00:36]} 4. d5 {[%emt 0:00:00]} d6 {[%emt 0:00:25]} 5. e4 {[%emt 0:00:00]} Bg7 {[%emt 0:00:23]} 6. Ne2 {[%emt 0:00:13]} O-O {[%emt 0:00:23]} 7. Nec3 {[%emt 0:00:11]} e6 {[%emt 0:00:25]} 8. Bg5 {[%emt 0:00:35]} Qa5 {[%emt 0:05:49]} 9. Qd2 {[%emt 0:02:43]} exd5 {[%emt 0:04:31]} 10. cxd5 {[%emt 0:01:48]} a6 {[%emt 0:01:42]} 11. Be2 {[%emt 0:09:29]} b5 {[%emt 0:01:03]} 12. O-O {[%emt 0:00:11]} Nbd7 {[%emt 0:00:42]} 13. a4 {[%emt 0:01:41]} b4 {[%emt 0:05:14]} 14. Nd1 {[%emt 0:00:54]} Qc7 {[%emt 0:01:20]} 15. a5 {[%emt 0:04:58]} Ne5 {[%emt 0:01:48]} 16. Qc2 {[%emt 0:10:40]} Bd7 {[%emt 0:20:59]} 17. f4 {[%emt 0:07:14]} b3 {[%emt 0:11:52]} 18. Qc1 {[%emt 0:09:14]} Neg4 {[%emt 0:08:02]} 19. h3 {[%emt 0:01:38]} Nxe4 {[%emt 0:00:11]} 20. Bxg4 {[%emt 0:02:29]} Bb5 {[%emt 0:02:49]} 21. Re1 {[%emt 0:07:45]} f5 {[%emt 0:06:09]} 22. Bf3 {[%emt 0:03:15]} Rae8 {[%emt 0:01:10]} 23. Ndc3 {[%emt 0:04:53]} Bd3 {[%emt 0:03:36]} 24. Bxe4 {[%emt 0:11:02]} fxe4 {[%emt 0:00:14]} 25. Nd2 {[%emt 0:00:11]} e3 {[%emt 0:06:24]} 26. Nf3 {[%emt 0:06:27]} h6 {[%emt 0:02:05]} 27. Bh4 {[%emt 0:01:56]} Rxf4 {[%emt 0:00:13]} 28. Rxe3 {[%emt 0:00:49]} Rxe3 {[%emt 0:09:16]} 29. Qxe3 {[%emt 0:00:02]} g5 {[%emt 0:00:17]} 30. Bg3 {[%emt 0:01:27]} Rd4 {[%emt 0:01:25]} 31. Kh1 {[%emt 0:00:35]} Bg6 {[%emt 0:00:11]} 32. Nxd4 cxd4 {[%emt 0:00:10]} 33. Qe6+ {[%emt 0:08:34]} Bf7 {[%emt 0:00:14]} 34. Nb5 {[%emt 0:00:03]} axb5 {[%emt 0:00:24]} 35. Qxd6 {[%emt 0:00:23]} Qc2 {[%emt 0:00:37]} 36. a6 {[%emt 0:01:38]} Qxb2 {[%emt 0:00:22]} 37. Rg1 {[%emt 0:01:47]} Qa2 {[%emt 0:00:25]} 38. Qb8+ {[%emt 0:01:36]} Kh7 {[%emt 0:00:09]} 39. Qxb5 {[%emt 0:01:18]} b2 {[%emt 0:01:16]} 40. d6 {[%emt 0:01:18]} Bd5 {[%emt 0:03:33]} 41. Qd3+ {[%emt 0:08:48]} Kg8 {[%emt 0:02:08]} 42. d7 {[%emt 0:00:58]} Qa5 {[%emt 0:06:59]} 43. Qg6 {[%emt 0:01:13]} Bf7 {[%emt 0:07:40]} 44. Qd6 {[%emt 0:00:14]} Qd8 {[%emt 0:01:26]} 45. a7 {[%emt 0:00:21]} 1-0

[Event "Ostravsky Konik-A 2019"]
[Site "Ostrava"]
[Date "2019.05.03"]
[Round "7.1"]
[White "Ruzicka, Petr"]
[Black "Sernecki, Franciszek"]
[Result "1/2-1/2"]
[ECO "A13"]
[WhiteElo "2202"]
[BlackElo "2259"]
[Annotator "NA"]
[PlyCount "117"]
[EventDate "2019.04.27"]
[EventType "swiss"]
[EventCountry "CZE"]
[SourceTitle "playchess.com"]
[Source "ChessBase"]
[SourceQuality "1"]
[TimeControl "40/5400+30:1800+30"]

1. c4 {[%emt 0:00:00]} e6 {[%emt 0:00:05]} 2. Nc3 {[%emt 0:00:59]} d5 {[%emt 0:00:51]} 3. e3 {[%emt 0:01:53]} Nf6 {[%emt 0:02:04]} 4. Nf3 {[%emt 0:00:17]} c5 {[%emt 0:00:55]} 5. d4 {[%emt 0:00:56]} Nc6 {[%emt 0:00:36]} 6. cxd5 {[%emt 0:01:37]} exd5 {[%emt 0:00:15]} 7. Bb5 {[%emt 0:00:14]} Bd6 {[%emt 0:10:57]} 8. O-O {[%emt 0:02:05]} O-O {[%emt 0:03:33]} 9. Re1 {[%emt 0:07:15] D32: Tarrasch Defence: Sidelines and lines without g3} (9. h3 cxd4 10. exd4 h6 11. Re1 Be6 12. Ne5 Rc8 13. Bf4 Re8 14. Bg3 Qb6 15. Nxc6 bxc6 16. Bxd6 cxb5 17. Be5 Nd7 18. Qd3 b4 {½-½ (33) Bacrot,E (2710)-Fang,Y (2500) Jiangmen 2018}) 9... Bg4 {[%emt 0:06:02]} 10. Be2 $146 {[%emt 0:16:08]} ({Predecessor:} 10. Bxc6 bxc6 11. h3 Bh5 12. dxc5 Bxc5 13. a3 a5 14. g4 Bg6 15. Ne5 Qc7 16. f4 Bd6 {0-1 (30) Greciano Reiskila,M (1970)-Rubio Campos,J (1813) Collado Villalba 2009}) 10... c4 {[%emt 0:17:18]} 11. h3 {[%emt 0:15:52]} Bh5 {[%emt 0:08:40]} 12. Bd2 {[%emt 0:02:40]} a6 {[%emt 0:12:19]} 13. Nh4 {[%emt 0:09:35]} Bxe2 {[%emt 0:03:56]} 14. Qxe2 {[%emt 0:00:09]} b5 {[%emt 0:02:35]} 15. a3 {[%emt 0:03:15]} Re8 {[%emt 0:11:34]} 16. Nf5 {[%emt 0:06:25]} g6 {[%emt 0:02:40]} 17. Nxd6 {[%emt 0:01:06]} Qxd6 {[%emt 0:00:01]} 18. Qf3 {[%emt 0:01:30]} Ne4 {[%emt 0:01:32]} 19. Nxe4 {[%emt 0:03:26]} Rxe4 {[%emt 0:00:44]} 20. g3 {[%emt 0:01:57]} Rae8 {[%emt 0:01:54]} 21. Qg2 {[%emt 0:00:46]} R4e6 {[%emt 0:02:51]} 22. f3 {[%emt 0:01:12]} Qd7 {[%emt 0:01:39]} 23. Qf2 {[%emt 0:01:40]} R8e7 {[%emt 0:02:16]} 24. Rad1 {[%emt 0:03:39]} f5 {[%emt 0:03:17]} 25. g4 {[%emt 0:01:13]} Rf7 {[%emt 0:01:32]} 26. Qg3 {[%emt 0:02:44]} Ref6 {[%emt 0:02:05]} 27. Rf1 {[%emt 0:01:53]} Re6 {[%emt 0:00:39]} 28. Bc1 {[%emt 0:01:08]} Re8 {[%emt 0:00:27]} 29. Qh4 {[%emt 0:02:43]} Qe7 {[%emt 0:00:29]} 30. Qxe7 {[%emt 0:02:49]} Rexe7 {[%emt 0:00:22]} 31. Kg2 {[%emt 0:00:59]} Re8 {[%emt 0:00:35]} 32. Rfe1 {[%emt 0:01:28]} b4 {[%emt 0:00:31]} 33. gxf5 {[%emt 0:02:08]} gxf5 {[%emt 0:00:29]} 34. Kf2 {[%emt 0:00:31]} Rf6 {[%emt 0:00:42]} 35. Rg1+ {[%emt 0:01:43]} Rg6 {[%emt 0:00:07]} 36. h4 {[%emt 0:00:10]} Kf7 {[%emt 0:00:28]} 37. h5 {[%emt 0:00:06]} Rxg1 {[%emt 0:00:26]} 38. Rxg1 {[%emt 0:00:03]} bxa3 {[%emt 0:00:24]} 39. bxa3 {[%emt 0:00:09]} Ne7 {[%emt 0:00:56]} 40. Bd2 {[%emt 0:01:12]} Rb8 {[%emt 0:00:35]} 41. Bb4 {[%emt 0:32:10]} Nc6 {[%emt 0:10:10]} 42. Bc5 $2 {[%emt 0:00:00]} (42. e4 $11) 42... Rb2+ {[%emt 0:10:10]} 43. Kg3 {[%emt 0:00:00]} c3 {[%emt 0:03:37]} (43... Ke6 $17 44. Kf4 Rh2) 44. Rc1 {[%emt 0:00:00]} c2 {[%emt 0:00:48]} 45. Bb4 $1 {[%emt 0:00:00]} Kf6 {[%emt 0:03:25]} 46. Bc3 {[%emt 0:00:00]} Ra2 {[%emt 0:00:51]} 47. Kf4 {[%emt 0:00:00]} Na7 {[%emt 0:01:26]} 48. e4 {[%emt 0:00:00]} Nb5 {[%emt 0:00:46]} 49. Bb4 {[%emt 0:00:00]} fxe4 {[%emt 0:02:22]} 50. fxe4 {[%emt 0:00:00]} Ke6 {[%emt 0:00:44]} 51. Ke3 {[%emt 0:00:00]} Nxa3 {[%emt 0:01:02]} 52. Kd3 {[%emt 0:00:00]} dxe4+ {[%emt 0:00:32]} 53. Kxe4 {[%emt 0:00:00]} Nb5 {[%emt 0:00:37]} 54. Kd3 {[%emt 0:00:00]} Kd5 {[%emt 0:00:27]} 55. Bc5 {[%emt 0:00:00]} Rb2 {[%emt 0:00:39]} 56. Re1 {[%emt 0:00:00]} Rb3+ $11 {[%emt 0:00:23]} (56... a5 $19 57. Re5+ Kc6) 57. Kxc2 {[%emt 0:00:00]} Rh3 {[%emt 0:00:14]} 58. Ra1 {[%emt 0:00:00]} Rh2+ {[%emt 0:00:49]} 59. Kd3 {[%emt 0:00:00] Ke5 Ke4+} 1/2-1/2